fUSD/lending_fUSD_20250503
["ID","MTS","AMOUNT","RATE_DAILY","PERIOD"]
[359666724,1746233446786,-759.3,0.00019973,2]
[359666725,1746233446795,-450.0,0.00019974,2]
[359666726,1746233446805,-569.13,0.00019974,2]
[359666727,1746233446815,-450.0,0.00019974,2]
[359666728,1746233446824,-450.0,0.00019974,2]
[359666729,1746233446834,-450.0,0.00019974,2]
[359666730,1746233446843,-450.0,0.00019974,2]
[359666731,1746233446852,-450.0,0.00019974,2]
[359666732,1746233446862,-450.0,0.00019974,2]
[359666733,1746233446872,-636.23,0.00019974,2]
[359666734,1746233446881,-450.0,0.00019974,2]
[359666735,1746233446891,-450.0,0.00019974,2]
[359666736,1746233446900,-450.0,0.00019974,2]
[359666737,1746233446911,-451.62,0.00019974,2]
[359666738,1746233446923,-450.0,0.00019974,2]
[359666739,1746233446936,-450.0,0.00019974,2]
[359666740,1746233446949,-450.0,0.00019974,2]
[359666741,1746233446961,-450.0,0.00019974,2]
[359666742,1746233446973,-450.0,0.00019974,2]
[359666743,1746233446983,-450.0,0.00019974,2]
[359666744,1746233446994,-450.0,0.00019974,2]
[359666745,1746233447005,-450.0,0.00019974,2]
[359666746,1746233447017,-450.0,0.00019974,2]
[359666747,1746233447030,-450.0,0.00019974,2]
[359666748,1746233447040,-450.0,0.00019974,2]
[359666749,1746233447051,-497.26,0.00019974,2]
[359666750,1746233447064,-450.0,0.00019974,2]
[359666751,1746233447075,-450.0,0.00019974,2]
[359666752,1746233447087,-594.26,0.00019974,2]
[359666753,1746233447098,-450.0,0.00019974,2]
[359666754,1746233447111,-450.0,0.00019974,2]
[359666755,1746233447123,-450.0,0.00019974,2]
[359666756,1746233447134,-450.0,0.00019974,2]
[359666757,1746233447145,-450.0,0.00019974,2]
[359666758,1746233447155,-450.0,0.00019974,2]
[359666759,1746233447166,-450.0,0.00019974,2]
[359666760,1746233447175,-644.52,0.00019974,2]
[359666761,1746233447186,-450.0,0.00019974,2]
[359666762,1746233447198,-557.92,0.00019974,2]
[359666763,1746233447210,-450.0,0.00019974,2]
[359666764,1746233447221,-471.36,0.00019974,2]
[359666765,1746233447232,-450.0,0.00019974,2]
[359666766,1746233447243,-450.0,0.00019974,2]
[359666767,1746233447254,-485.01,0.00019974,2]
[359666768,1746233447266,-450.0,0.00019974,2]
[359666769,1746233447278,-450.0,0.00019974,2]
[359666770,1746233447289,-535.68,0.00019974,2]
[359666771,1746233447301,-450.0,0.00019974,2]
[359666772,1746233447312,-450.0,0.00019974,2]
[359666773,1746233447324,-450.0,0.00019974,2]
[359666774,1746233447335,-450.0,0.00019974,2]
[359666775,1746233447346,-450.0,0.00019974,2]
[359666776,1746233447359,-450.0,0.00019974,2]
[359666777,1746233447370,-450.0,0.00019974,2]
[359666778,1746233447381,-450.0,0.00019974,2]
[359666779,1746233447392,-450.0,0.00019974,2]
[359666780,1746233447404,-574.59,0.00019974,2]
[359666781,1746233447416,-450.0,0.00019974,2]
[359666782,1746233447427,-450.0,0.00019974,2]
[359666783,1746233447437,-450.0,0.00019974,2]
[359666784,1746233447449,-450.0,0.00019974,2]
[359666785,1746233447460,-450.0,0.00019974,2]
[359666786,1746233447471,-450.0,0.00019974,2]
[359666787,1746233447483,-450.0,0.00019974,2]
[359666788,1746233447496,-546.25,0.00019974,2]
[359666789,1746233447507,-807.85,0.00019974,2]
[359666790,1746233447518,-538.33,0.00019974,2]
[359666791,1746233447530,-450.0,0.00019974,2]
[359666792,1746233447541,-547.5,0.00019974,2]
[359666793,1746233447553,-450.0,0.00019974,2]
[359666794,1746233447564,-450.0,0.00019974,2]
[359666795,1746233447575,-1414.16,0.00019974,2]
[359666796,1746233447585,-450.0,0.00019974,2]
[359666797,1746233447596,-450.0,0.00019974,2]
[359666798,1746233447606,-460.57,0.00019974,2]
[359666799,1746233447617,-450.0,0.00019974,2]
[359666800,1746233447629,-450.0,0.00019974,2]
[359666801,1746233447642,-997.76,0.00019974,2]
[359666802,1746233447652,-518.75,0.00019974,2]
[359666803,1746233447662,-678.15,0.00019974,2]
[359666804,1746233447672,-300.0,0.00019974,2]
[359666805,1746233447682,-478.11,0.00019974,2]
[359666806,1746233447691,-450.0,0.00019974,2]
[359666807,1746233447702,-450.0,0.00019974,2]
[359666808,1746233447712,-450.0,0.00019974,2]
[359666809,1746233447724,-476.55,0.00019974,2]
[359666810,1746233447735,-450.0,0.00019974,2]
[359666811,1746233447748,-450.0,0.00019974,2]
[359666812,1746233447759,-499.59,0.00019974,2]
[359666813,1746233447770,-450.0,0.00019974,2]
[359666814,1746233447780,-638.21,0.00019974,2]
[359666815,1746233447791,-154.16843887,0.00019974,2]
[359666816,1746233447802,-599.89,0.00019974,2]
[359666817,1746233447814,-790.37,0.00019974,2]
[359666818,1746233447824,-450.0,0.00019974,2]
[359666819,1746233447835,-719.52,0.00019974,2]
[359666820,1746233447845,-450.0,0.00019974,2]
[359666821,1746233447856,-450.0,0.00019974,2]
[359666822,1746233447867,-475.7,0.00019974,2]
[359666823,1746233447878,-710.06,0.00019974,2]
[359666824,1746233447888,-450.0,0.00019974,2]
[359666825,1746233447899,-556.64,0.00019974,2]
[359666826,1746233447910,-450.0,0.00019974,2]
[359666827,1746233447921,-450.0,0.00019974,2]
[359666828,1746233447933,-1190.79,0.00019974,2]
[359666829,1746233447944,-388.97615168,0.00019974,2]
[359666830,1746233447955,-450.0,0.00019974,2]
[359666831,1746233447966,-661.95,0.00019974,2]
[359666832,1746233447977,-450.0,0.00019974,2]
[359666833,1746233447988,-556.85,0.00019974,2]
[359666834,1746233447999,-450.0,0.00019974,2]
[359666835,1746233448011,-450.0,0.00019974,2]
[359666836,1746233448021,-464.27,0.00019974,2]
[359666837,1746233448033,-1824.33,0.00019974,2]
[359666838,1746233448044,-1119.51,0.00019974,2]
[359666839,1746233448056,-450.0,0.00019974,2]
[359666840,1746233448067,-312.09809504,0.00019974,2]
[359666841,1746233448079,-718.84,0.00019974,2]
[359666842,1746233448095,-450.0,0.00019974,2]
[359666843,1746233448105,-450.0,0.00019974,2]
[359666844,1746233448116,-450.0,0.00019974,2]
[359666845,1746233448128,-991.51,0.00019974,2]
[359666846,1746233448138,-450.0,0.00019974,2]
[359666847,1746233448150,-450.0,0.00019974,2]
[359666848,1746233448161,-450.0,0.00019974,2]
[359666849,1746233448171,-450.0,0.00019974,2]
[359666850,1746233448182,-450.0,0.00019974,2]
[359666851,1746233448193,-450.0,0.00019974,2]
[359666852,1746233448203,-450.0,0.00019974,2]
[359666853,1746233448214,-1030.31,0.00019974,2]
[359666854,1746233448225,-450.0,0.00019974,2]
[359666855,1746233448236,-280.71389357,0.00019974,2]
[359666856,1746233448247,-511.21,0.00019974,2]
[359666857,1746233448257,-154.18898431,0.00019974,2]
[359666858,1746233448268,-450.0,0.00019974,2]
[359666859,1746233448279,-450.0,0.00019974,2]
[359666860,1746233448289,-913.43,0.00019974,2]
[359666861,1746233448300,-150.0,0.00019974,2]
[359666862,1746233448311,-474.2,0.00019974,2]
[359666863,1746233448323,-450.0,0.00019974,2]
[359666864,1746233448334,-450.0,0.00019974,2]
[359666865,1746233448345,-1124.03,0.00019974,2]
[359666866,1746233448356,-450.0,0.00019974,2]
[359666867,1746233448367,-450.0,0.00019974,2]
[359666868,1746233448378,-454.99,0.00019974,2]
[359666869,1746233448388,-581.39,0.00019974,2]
[359666870,1746233448399,-450.0,0.00019974,2]
[359666871,1746233448410,-554.14,0.00019974,2]
[359666872,1746233448421,-347.12520808,0.00019974,2]
[359666873,1746233448432,-1518.08,0.00019974,2]
[359666874,1746233448443,-709.8,0.00019974,2]
[359666875,1746233448454,-758.4,0.00019974,2]
[359666876,1746233448465,-623.47,0.00019974,2]
[359666877,1746233448475,-450.0,0.00019974,2]
[359666878,1746233448487,-450.0,0.00019974,2]
[359666879,1746233448497,-450.0,0.00019974,2]
[359666880,1746233448508,-450.0,0.00019974,2]
[359666881,1746233448519,-150.0,0.00019974,2]
[359666882,1746233448530,-3818.09,0.00019974,2]
[359666883,1746233448542,-450.0,0.00019974,2]
[359666884,1746233448553,-898.33,0.00019974,2]
[359666885,1746233448564,-450.0,0.00019974,2]
[359666886,1746233448574,-4333.06,0.00019974,2]
[359666887,1746233448584,-753.48,0.00019974,2]
[359666888,1746233448595,-3935.8,0.00019974,2]
[359666889,1746233448605,-863.93,0.00019974,2]
[359666890,1746233448616,-450.0,0.00019974,2]
[359666891,1746233448627,-473.78,0.00019974,2]
[359666892,1746233448638,-450.0,0.00019974,2]
[359666893,1746233448649,-450.0,0.00019974,2]
[359666894,1746233448659,-450.0,0.00019974,2]
[359666895,1746233448670,-450.0,0.00019974,2]
[359666896,1746233448682,-450.0,0.00019974,2]
[359666897,1746233448693,-530.1,0.00019974,2]
[359666898,1746233448704,-685.43,0.00019974,2]
[359666899,1746233448715,-4323.14,0.00019974,2]
[359666900,1746233448727,-83080.32,0.00019974,2]
[359666901,1746233448738,-2279.09,0.00019974,2]
[359666902,1746233448749,-450.0,0.00019974,2]
[359666903,1746233448760,-1002.37,0.00019974,2]
[359666904,1746233448771,-4573.93,0.00019974,2]
[359666905,1746233448782,-652.57,0.00019974,2]
[359666906,1746233448793,-26284.84,0.00019974,2]
[359666907,1746233448803,-541.22,0.00019974,2]
[359666908,1746233448814,-1655.58,0.00019974,2]
[359666909,1746233448824,-2059.63,0.00019974,2]
[359666910,1746233448835,-14022.43,0.00019974,2]
[359666911,1746233448846,-450.0,0.00019975,2]
[359666912,1746233448856,-150.0,0.00019975,2]
[359666913,1746233448867,-1074.92705239,0.00019976,2]
[359666914,1746233448878,-500.0,0.00019982,2]
[359666915,1746233448889,-500.0,0.00019982,2]
[359666916,1746233448899,-500.0,0.00019982,2]
[359666917,1746233448910,-201.12892741,0.00019982,2]
[359666918,1746233448921,-500.0,0.00019982,2]
[359666919,1746233448931,-150.0,0.00019982,2]
[359666920,1746233448942,-418.0,0.00019982,2]
[359666921,1746233448954,-500.0,0.00019982,2]
[359666922,1746233448965,-500.0,0.00019982,2]
[359666923,1746233448975,-150.0,0.00019982,2]
[359666924,1746233448986,-500.0,0.00019982,2]
[359666925,1746233448998,-423.0,0.00019982,2]
[359666926,1746233449008,-150.0,0.00019982,2]
[359666927,1746233449019,-500.0,0.00019982,2]
[359666928,1746233449031,-150.0,0.00019982,2]
[359666929,1746233449041,-500.0,0.00019982,2]
[359666930,1746233449053,-150.0,0.00019982,2]
[359666931,1746233449064,-150.0,0.00019984,2]
[359666932,1746233449075,-1727.0,0.00019986,2]
[359666933,1746233449085,-4677.8147878,0.00019986,2]
[359666934,1746233449096,-6082.5546997,0.00019986,2]
[359666935,1746233449106,-10514.5364654,0.00019986,2]
[359666936,1746233449116,-147436.9300156,0.00019986,2]
[359666937,1746233449126,-150.0,0.00019989,2]
[359666938,1746233449136,-1074.92705239,0.0001999,2]
[359666939,1746233449146,-1074.92705239,0.0001999,2]
[359666940,1746233449156,-500.0,0.00019999,2]
[359666941,1746233449167,-675.05638042,0.00019999,2]
[359666942,1746233449177,-500.0,0.00019999,2]
[359666943,1746233449187,-330.07121084,0.00019999,2]
[359666944,1746233449197,-300.0,0.00019999,2]
[359666945,1746233449209,-300.0,0.00019999,2]
[359666946,1746233449219,-300.0,0.00019999,2]
[359666947,1746233449229,-3972.5,0.00019999,2]
[359666948,1746233449240,-74566.8741372,0.0002,2]
[359666949,1746233449250,-259.59690718,0.0002,2]
[359666950,1746233449261,-549153.77915108,0.0002,2]
[359666951,1746233449271,-1159754.12538198,0.0002,2]
[359666952,1746233449281,-1781527.36028835,0.0002,2]
[359666953,1746233449292,-211.0,0.0002,2]
[359666954,1746233449302,-211.0,0.0002,2]
[359666955,1746233449312,-242.0,0.0002,2]
[359666956,1746233449322,-242.0,0.0002,2]
[359666957,1746233449332,-242.0,0.0002,2]
[359666958,1746233449343,-242.0,0.0002,2]
[359666959,1746233449353,-242.0,0.0002,2]
[359666960,1746233449364,-242.0,0.0002,2]
[359666961,1746233449374,-242.0,0.0002,2]
[359666962,1746233449385,-242.0,0.0002,2]
[359666963,1746233449396,-242.0,0.0002,2]
[359666964,1746233449406,-242.0,0.0002,2]
[359666965,1746233449418,-242.0,0.0002,2]
[359666966,1746233449428,-242.0,0.0002,2]
[359666967,1746233449440,-242.0,0.0002,2]
[359666968,1746233449452,-242.0,0.0002,2]
[359666969,1746233449462,-242.0,0.0002,2]
[359666970,1746233449472,-242.0,0.0002,2]
[359666971,1746233449483,-242.0,0.0002,2]
[359666972,1746233449494,-1782.67,0.0002,2]
[359666973,1746233449504,-250.0,0.0002,2]
[359666974,1746233449514,-250.0,0.0002,2]
[359666975,1746233449525,-250.0,0.0002,2]
[359666976,1746233449535,-250.0,0.0002,2]
[359666977,1746233449546,-250.0,0.0002,2]
[359666978,1746233449556,-250.0,0.0002,2]
[359666979,1746233449566,-250.0,0.0002,2]
[359666980,1746233449575,-250.0,0.0002,2]
[359666981,1746233449585,-250.0,0.0002,2]
[359666982,1746233449595,-250.0,0.0002,2]
[359666983,1746233449605,-367.2,0.0002,2]
[359666984,1746233449615,-151.0,0.0002,2]
[359666985,1746233449625,-151.0,0.0002,2]
[359666986,1746233449636,-104353.85260961,0.0002,2]
[359666987,1746233449658,-16692.86148495,0.0002,2]
[359666988,1746233450002,-450.0,0.00019699,2]
[359666989,1746233450012,-44350.97998397,0.0002,2]
[359666990,1746233450024,-999.6752,0.0002,2]
[359666991,1746233450041,-800.0,0.0002,2]
[359666992,1746233450053,-3040.69466733,0.0002,2]
[359666993,1746233450065,-2307.80765407,0.0002,2]
[359666994,1746233450081,-778.93601478,0.0002,2]
[359666995,1746233450856,-289.13065898,0.00019846,2]
[359666996,1746233450872,-210.86934102,0.00019846,2]
[359666997,1746233450881,-500.0,0.00019846,2]
[359666998,1746233450890,-500.0,0.00019846,2]
[359666999,1746233450898,-500.0,0.00019846,2]
[359667000,1746233450908,-452.62867872,0.00019846,2]
[359667001,1746233450917,-8910.89003506,0.0002,2]
[359667002,1746233493636,206.0,0.0001943,2]
[359667003,1746233494456,160.0757604,0.00018,2]
[359667004,1746233494484,45.9242396,0.00018,2]
[359667005,1746234005375,188.27,0.00018774,2]
[359667006,1746234023642,178.64,0.00019322,2]
[359667007,1746234154415,250.0,0.00017,2]
[359667008,1746234155301,300.0,0.00019,2]
[359667009,1746234156413,319.5,0.0003,30]
[359667010,1746234157087,409.53,0.00016837,2]
[359667011,1746234157520,409.53,0.00019101,2]
[359667012,1746234349610,3689.11,0.00018784,2]
[359667013,1746234449256,1000.0,0.0001875,2]
[359667014,1746234544550,7721.05,0.0001876,2]
[359667015,1746234619071,5109.0,0.00032877,60]
[359667016,1746234631736,-1200.0,0.00019598,2]
[359667017,1746234631746,-300.0,0.00019598,2]
[359667018,1746234631755,-1113.24840353,0.00019599,2]
[359667019,1746234631767,-11168.39359647,0.00019599,2]
[359667020,1746234631776,-151.0,0.00019599,2]
[359667021,1746234631787,-250.0,0.00019599,2]
[359667022,1746234631796,-1436.57273423,0.00019599,2]
[359667023,1746234631805,-200.0,0.00019607,2]
[359667024,1746234631816,-200.0,0.00019616,2]
[359667025,1746234631825,-1436.5727342,0.00019632,2]
[359667026,1746234631834,-167.27559275,0.00019633,2]
[359667027,1746234631844,-1436.5727342,0.00019666,2]
[359667028,1746234631853,-207.4,0.00019686,2]
[359667029,1746234631863,-151.0,0.00019686,2]
[359667030,1746234631872,-151.0,0.00019687,2]
[359667031,1746234631883,-668.65185757,0.00019687,2]
[359667032,1746234631892,-151.0,0.00019687,2]
[359667033,1746234631901,-20566.05358364,0.00019688,2]
[359667034,1746234631911,-214.93,0.00019689,2]
[359667035,1746234631920,-214.93,0.00019689,2]
[359667036,1746234631930,-214.93,0.00019689,2]
[359667037,1746234631939,-214.93,0.00019689,2]
[359667038,1746234631948,-500.0,0.00019697,2]
[359667039,1746234631958,-500.0,0.00019697,2]
[359667040,1746234631967,-500.0,0.00019697,2]
[359667041,1746234631977,-500.0,0.00019697,2]
[359667042,1746234631987,-500.0,0.00019697,2]
[359667043,1746234631996,-500.0,0.00019697,2]
[359667044,1746234632005,-153.69732532,0.00019697,2]
[359667045,1746234632014,-500.0,0.00019697,2]
[359667046,1746234632024,-500.0,0.00019697,2]
[359667047,1746234632033,-500.0,0.00019697,2]
[359667048,1746234632043,-475.6699512,0.00019697,2]
[359667049,1746234632053,-158.67142348,0.00019697,2]
[359667050,1746234632062,-500.0,0.00019697,2]
[359667051,1746234632071,-500.0,0.00019697,2]
[359667052,1746234632080,-500.0,0.00019697,2]
[359667053,1746234632090,-500.0,0.00019697,2]
[359667054,1746234632099,-500.0,0.00019697,2]
[359667055,1746234632109,-200.0,0.00019697,2]
[359667056,1746234632118,-214.93,0.00019698,2]
[359667057,1746234632128,-246.53420213,0.00019698,2]
[359667058,1746234632138,-450.0,0.00019698,2]
[359667060,1746234632147,-450.0,0.00019698,2]
[359667062,1746234632156,-450.0,0.00019698,2]
[359667064,1746234632166,-450.0,0.00019698,2]
[359667066,1746234632175,-450.0,0.00019698,2]
[359667067,1746234632184,-450.0,0.00019698,2]
[359667069,1746234632193,-450.0,0.00019698,2]
[359667071,1746234632203,-617.22,0.00019698,2]
[359667073,1746234632212,-450.0,0.00019698,2]
[359667075,1746234632222,-450.0,0.00019698,2]
[359667077,1746234632232,-450.0,0.00019698,2]
[359667079,1746234632241,-250.0,0.00019698,2]
[359667081,1746234632252,-450.0,0.00019698,2]
[359667083,1746234632262,-450.0,0.00019698,2]
[359667085,1746234632271,-450.0,0.00019698,2]
[359667087,1746234632282,-450.0,0.00019698,2]
[359667089,1746234632291,-450.0,0.00019698,2]
[359667091,1746234632301,-450.0,0.00019698,2]
[359667093,1746234632310,-450.0,0.00019698,2]
[359667094,1746234632320,-450.0,0.00019698,2]
[359667096,1746234632329,-450.0,0.00019698,2]
[359667097,1746234632339,-450.0,0.00019698,2]
[359667098,1746234632350,-450.0,0.00019698,2]
[359667099,1746234632360,-450.0,0.00019698,2]
[359667100,1746234632370,-236.83372643,0.00019698,2]
[359667101,1746234632380,-450.0,0.00019698,2]
[359667102,1746234632394,-450.0,0.00019698,2]
[359667103,1746234632404,-450.0,0.00019698,2]
[359667104,1746234632413,-450.0,0.00019698,2]
[359667105,1746234632423,-450.0,0.00019698,2]
[359667106,1746234632433,-434.78016698,0.00019698,2]
[359667107,1746234632542,-15.21983302,0.00019698,2]
[359667108,1746234632552,-188.84194376,0.00019698,2]
[359667109,1746234632562,-225.97742146,0.00019698,2]
[359667110,1746234632574,-645.57257854,0.00019698,2]
[359667111,1746234632583,-450.0,0.00019698,2]
[359667112,1746234632593,-450.0,0.00019698,2]
[359667113,1746234632602,-207.66,0.00019698,2]
[359667114,1746234632611,-671.71,0.00019698,2]
[359667115,1746234632621,-585.564636,0.00019698,2]
[359667116,1746234632631,-237.82795749,0.00019698,2]
[359667117,1746234632640,-450.0,0.00019698,2]
[359667118,1746234632649,-463.69,0.00019698,2]
[359667119,1746234632659,-450.0,0.00019698,2]
[359667120,1746234632668,-450.0,0.00019698,2]
[359667121,1746234632678,-450.0,0.00019698,2]
[359667122,1746234632687,-450.0,0.00019698,2]
[359667123,1746234632697,-450.0,0.00019698,2]
[359667124,1746234632706,-450.0,0.00019698,2]
[359667125,1746234632715,-450.0,0.00019698,2]
[359667126,1746234632724,-836.983983,0.00019698,2]
[359667127,1746234632734,-450.0,0.00019698,2]
[359667128,1746234632743,-450.0,0.00019698,2]
[359667129,1746234632754,-450.0,0.00019698,2]
[359667130,1746234632763,-165.99084497,0.00019698,2]
[359667131,1746234632785,-284.00915503,0.00019698,2]
[359667132,1746234632796,-450.0,0.00019698,2]
[359667133,1746234632807,-386.7109438,0.00019698,2]
[359667134,1746234632819,-63.2890562,0.00019698,2]
[359667135,1746234632830,-450.0,0.00019698,2]
[359667136,1746234632840,-450.0,0.00019698,2]
[359667137,1746234633158,-450.0,0.00019698,2]
[359667138,1746234633169,-450.0,0.00019698,2]
[359667139,1746234633179,-450.0,0.00019698,2]
[359667140,1746234633189,-450.0,0.00019698,2]
[359667141,1746234633199,-450.0,0.00019698,2]
[359667142,1746234633210,-450.0,0.00019698,2]
[359667143,1746234633220,-210.17798405,0.00019698,2]
[359667146,1746234637853,-239.82201595,0.00019698,2]
[359667147,1746234637862,-450.0,0.00019698,2]
[359667148,1746234637872,-450.0,0.00019698,2]
[359667149,1746234637882,-450.0,0.00019698,2]
[359667150,1746234637891,-450.0,0.00019698,2]
[359667151,1746234637901,-450.0,0.00019698,2]
[359667152,1746234637910,-186.27027269,0.00019698,2]
[359667161,1746234639951,-263.72972731,0.00019698,2]
[359667162,1746234639962,-450.0,0.00019698,2]
[359667163,1746234639971,-450.0,0.00019698,2]
[359667164,1746234639981,-450.0,0.00019698,2]
[359667165,1746234639991,-450.0,0.00019698,2]
[359667166,1746234640001,-450.0,0.00019698,2]
[359667167,1746234640010,-386.57574309,0.00019698,2]
[359667168,1746234640022,-63.42425691,0.00019698,2]
[359667169,1746234640032,-419.91429821,0.00019698,2]
[359667170,1746234640170,-30.08570179,0.00019698,2]
[359667171,1746234640179,-450.0,0.00019698,2]
[359667172,1746234640189,-450.0,0.00019698,2]
[359667173,1746234640199,-450.0,0.00019698,2]
[359667174,1746234640209,-450.0,0.00019698,2]
[359667175,1746234640219,-16.52086807,0.00019698,2]
[359667176,1746234640231,-433.47913193,0.00019698,2]
[359667177,1746234640240,-450.0,0.00019698,2]
[359667178,1746234640249,-450.0,0.00019698,2]
[359667179,1746234640259,-450.0,0.00019698,2]
[359667180,1746234640268,-450.0,0.00019698,2]
[359667181,1746234640278,-450.0,0.00019698,2]
[359667182,1746234640287,-450.0,0.00019698,2]
[359667183,1746234640297,-524.14,0.00019698,2]
[359667184,1746234640307,-450.0,0.00019698,2]
[359667185,1746234640316,-380.38508656,0.00019698,2]
[359667186,1746234640325,-450.0,0.00019698,2]
[359667187,1746234640335,-450.0,0.00019698,2]
[359667188,1746234640345,-450.0,0.00019698,2]
[359667189,1746234640354,-170.76658812,0.00019698,2]
[359667190,1746234640364,-450.0,0.00019698,2]
[359667191,1746234640375,-450.0,0.00019698,2]
[359667192,1746234640387,-450.0,0.00019698,2]
[359667193,1746234640398,-450.0,0.00019698,2]
[359667194,1746234640408,-6565.37,0.00019698,2]
[359667195,1746234640418,-521.19,0.00019698,2]
[359667196,1746234640428,-927.91,0.00019698,2]
[359667197,1746234640437,-450.0,0.00019698,2]
[359667198,1746234640447,-302.32396757,0.00019698,2]
[359667199,1746234640457,-713.92,0.00019698,2]
[359667200,1746234640468,-450.0,0.00019698,2]
[359667201,1746234640478,-450.0,0.00019698,2]
[359667202,1746234640487,-454.84,0.00019698,2]
[359667203,1746234640497,-450.0,0.00019698,2]
[359667204,1746234640507,-450.0,0.00019698,2]
[359667205,1746234640516,-450.0,0.00019698,2]
[359667206,1746234640526,-454.86,0.00019698,2]
[359667207,1746234640536,-450.0,0.00019698,2]
[359667208,1746234640545,-450.0,0.00019698,2]
[359667209,1746234640555,-450.0,0.00019698,2]
[359667210,1746234640565,-450.0,0.00019698,2]
[359667211,1746234640575,-637.26,0.00019698,2]
[359667212,1746234640584,-450.0,0.00019698,2]
[359667213,1746234640594,-450.0,0.00019698,2]
[359667214,1746234640603,-450.0,0.00019698,2]
[359667215,1746234640613,-467.07,0.00019698,2]
[359667216,1746234640623,-450.0,0.00019698,2]
[359667217,1746234640633,-450.0,0.00019698,2]
[359667218,1746234640642,-486.15,0.00019698,2]
[359667219,1746234640652,-450.0,0.00019698,2]
[359667220,1746234640661,-450.0,0.00019698,2]
[359667221,1746234640671,-450.0,0.00019698,2]
[359667222,1746234640686,-6100.7,0.00019698,2]
[359667223,1746234640696,-450.0,0.00019698,2]
[359667224,1746234640706,-450.0,0.00019698,2]
[359667225,1746234640715,-450.0,0.00019698,2]
[359667227,1746234640725,-450.0,0.00019698,2]
[359667229,1746234640734,-450.0,0.00019698,2]
[359667231,1746234640744,-503.98,0.00019698,2]
[359667232,1746234640754,-450.0,0.00019698,2]
[359667233,1746234640763,-450.0,0.00019698,2]
[359667234,1746234640772,-554.09941886,0.00019698,2]
[359667235,1746234640782,-450.0,0.00019698,2]
[359667236,1746234640791,-450.0,0.00019698,2]
[359667237,1746234640800,-450.0,0.00019698,2]
[359667238,1746234640810,-450.0,0.00019698,2]
[359667239,1746234640819,-536.92,0.00019698,2]
[359667240,1746234640829,-450.0,0.00019698,2]
[359667241,1746234640839,-450.0,0.00019698,2]
[359667242,1746234640848,-461.75,0.00019698,2]
[359667243,1746234640857,-450.0,0.00019698,2]
[359667244,1746234640866,-450.0,0.00019698,2]
[359667245,1746234640875,-450.0,0.00019698,2]
[359667246,1746234640885,-450.0,0.00019698,2]
[359667247,1746234640895,-450.0,0.00019698,2]
[359667248,1746234640905,-450.0,0.00019698,2]
[359667249,1746234640915,-643.19,0.00019698,2]
[359667250,1746234640924,-234.39097713,0.00019698,2]
[359667251,1746234640933,-500.0,0.00019698,2]
[359667252,1746234640942,-450.0,0.00019698,2]
[359667253,1746234640951,-450.0,0.00019698,2]
[359667254,1746234640961,-450.0,0.00019698,2]